bitfinex/quotes_SOLUSD_20240930
["timestamp","ask_amount","ask_price","bid_price","bid_amount"]
[1727674118800,1.59326761,156.92,156.86,16.2841]
[1727674118983,1.59326761,156.92,156.89,10.33779855]
[1727674122713,23.776884,156.91,156.89,10.33779855]
[1727674124380,1.59348462,156.9,156.84,7.5750098]
[1727674124591,1.59348462,156.9,156.87,10.33779855]
[1727674125308,23.776884,156.89,156.87,10.33779855]
[1727674127105,6.0556,156.92,156.87,10.33779855]
[1727674127407,23.776884,156.91,156.89,10.33779855]
[1727674128187,52.12549,157.02,156.89,10.33779855]
[1727674128188,6.5991,156.96,156.89,10.33779855]
[1727674128386,6.5991,156.96,156.93,10.33779855]
[1727674128605,3.34600016,157.04,156.86,0.25098]
[1727674128606,6.5473,157.0,156.95,10.33779855]
[1727674128812,6.5473,157.0,156.97,10.33779855]
[1727674128982,6.5473,157.0,156.89,22.8951998]
[1727674129208,1.59288012,156.99,156.9,30.12549]
[1727674129389,1.59288012,156.99,156.96,10.33779855]
[1727674129821,1.59288012,156.99,156.97,5.03709506]
[1727674130114,23.776884,156.98,156.96,10.33779855]
[1727674130290,23.776884,156.99,156.96,10.33779855]
[1727674134219,23.776884,156.99,156.9,0.76468557]
[1727674134220,23.776884,156.99,156.98,10.33779855]
[1727674135930,23.776884,156.99,156.96,10.33779855]
[1727674136222,1.59279151,156.98,156.96,10.33779855]
[1727674136393,23.776884,156.99,156.94,10.07830334]
[1727674136597,1.59278578,156.97,156.96,30.0]
[1727674136799,1.59278578,156.97,156.95,10.33779855]
[1727674137299,23.776884,156.96,156.95,10.33779855]
[1727674137504,23.776884,156.96,156.95,40.33779855]
[1727674144318,6.5473,157.0,156.95,40.33779855]
[1727674144530,23.776884,156.99,156.97,10.33779855]
[1727674147835,25.36963089,156.99,156.97,10.33779855]
[1727674148031,23.776884,156.99,156.97,10.33779855]
[1727674149630,23.776884,157.0,156.97,10.33779855]
[1727674149836,23.776884,157.0,156.99,10.33779855]
[1727674152735,23.776884,157.0,156.95,0.76425555]
[1727674153037,23.776884,157.0,156.98,10.33779855]
[1727674154734,6.1515,157.04,156.98,10.33779855]
[1727674154940,6.1515,157.04,157.0,10.33779855]
[1727674156011,25.36922475,157.03,157.0,30.0]
[1727674156228,25.36922475,157.03,157.0,40.33779855]
[1727674156953,23.776884,157.03,157.0,40.33779855]
[1727674160630,23.776884,157.03,157.0,10.33779855]
[1727674163610,23.776884,157.03,157.0,40.33779855]
[1727674169050,6.3965,157.08,157.02,10.33779855]
[1727674169219,6.3965,157.08,157.04,10.33779855]
[1727674171116,23.776884,157.07,157.04,10.33779855]
[1727674171935,23.776884,157.07,157.04,40.33779855]
[1727674173382,23.776884,157.07,157.04,10.33779855]
[1727674175720,23.776884,157.07,157.02,10.22779855]
[1727674175934,6.3663,157.08,157.03,30.0]
[1727674176122,0.8084035,157.09,157.05,10.33779855]
[1727674176946,0.8084035,157.09,157.05,40.33779855]
[1727674179855,0.8084035,157.09,157.07,10.33779855]
[1727674189956,23.776884,157.08,157.07,10.33779855]
[1727674190163,23.776884,157.08,157.01,16.2841]
[1727674190461,23.776884,157.08,157.06,10.33779855]
[1727674192060,23.776884,157.08,157.07,30.0]
[1727674196547,23.776884,157.08,157.06,10.33779855]
[1727674196757,1.59172658,157.07,157.06,10.33779855]
[1727674196947,25.36863756,157.08,157.06,10.33779855]
[1727674197848,1.59179415,157.07,157.06,10.33779855]
[1727674198261,25.36867815,157.07,157.06,10.33779855]
[1727674198864,23.776884,157.07,157.06,10.33779855]
[1727674200269,0.8084035,157.09,157.06,10.33779855]
[1727674200560,25.36856502,157.08,157.06,10.33779855]
[1727674200956,23.776884,157.08,157.06,10.33779855]
[1727674204844,0.8084035,157.09,157.06,10.33779855]
[1727674205043,0.8084035,157.09,157.08,10.33779855]
[1727674205241,24.5852875,157.09,157.08,10.33779855]
[1727674211651,24.5852875,157.09,157.06,10.33779855]
[1727674211854,25.36855689,157.08,157.07,30.0]
[1727674212275,23.776884,157.08,157.07,30.0]
[1727674212852,23.776884,157.08,157.06,10.33779855]
[1727674213175,25.36878414,157.07,157.06,10.33779855]
[1727674213348,25.36878414,157.07,157.06,40.33779855]
[1727674213554,23.776884,157.07,157.06,40.33779855]
[1727674213753,23.776884,157.08,156.97,25.59142503]
[1727674213954,23.776884,157.06,157.04,10.33779855]
[1727674227484,23.776884,157.07,156.98,7.62892503]
[1727674227693,23.776884,157.04,157.02,10.33779855]
[1727674227893,7.96044956,157.03,156.98,7.62892503]
[1727674228099,23.776884,157.02,156.99,10.33779855]
[1727674228396,23.776884,157.02,156.97,15.6546]
[1727674228685,23.776884,157.02,156.99,10.33779855]
[1727674230692,1.59214956,157.03,156.95,0.12549]
[1727674230994,25.3693386,157.02,156.96,10.33779855]
[1727674233293,6.1818,157.0,156.94,10.33779855]
[1727674233493,6.1818,157.0,156.9,13.85857172]
[1727674233494,25.3697481,156.99,156.9,7.2050528]
[1727674233677,47.9312481,156.99,156.93,10.33779855]
[1727674234074,41.5613481,156.99,156.93,10.33779855]
[1727674234579,39.968484,156.99,156.93,10.33779855]
[1727674234773,39.968484,156.99,156.95,10.33779855]
[1727674237087,23.776884,156.97,156.95,10.33779855]
[1727674237295,1.592921,156.96,156.95,10.33779855]
[1727674237675,1.592921,156.96,156.93,10.33779855]
[1727674238198,1.592921,156.96,156.9,7.2050528]
[1727674238380,1.592921,156.96,156.93,10.33779855]
[1727674240905,23.776884,156.98,156.93,10.33779855]
[1727674242023,1.59306182,156.97,156.93,10.33779855]
[1727674242200,23.776884,156.96,156.93,10.33779855]
[1727674242405,23.776884,156.98,156.93,10.33779855]
[1727674244206,1.5930896,156.97,156.93,10.33779855]
[1727674244382,23.776884,156.96,156.93,10.33779855]
[1727674244705,1.59308864,156.95,156.92,10.33779855]
[1727674245592,23.776884,156.96,156.92,10.33779855]
[1727674245783,1.59310727,156.95,156.92,10.33779855]
[1727674247302,1.59310727,156.95,156.91,10.33779855]
[1727674248608,23.776884,156.94,156.87,7.2050528]
[1727674248810,23.776884,156.94,156.84,6.66591227]
[1727674248811,1.59321605,156.93,156.84,6.66591227]
[1727674249111,1.59321605,156.93,156.88,10.33779855]
[1727674254390,1.59321605,156.93,156.84,7.2050528]
[1727674254599,1.59321605,156.93,156.87,10.33779855]
[1727674255698,39.393484,156.94,156.89,10.33779855]
[1727674262716,15.6166,156.94,156.93,10.33779855]
[1727674263009,6.3076,156.95,156.93,10.33779855]
[1727674263789,16.1928,156.98,156.94,0.76490865]
[1727674263994,6.0714,156.99,156.97,10.33779855]
[1727674264211,22.2642,157.03,156.97,10.33779855]
[1727674264437,22.2642,157.03,156.99,10.33779855]
[1727674266105,22.2642,157.03,157.01,10.33779855]
[1727674266935,22.2642,157.03,156.99,10.33779855]
[1727674267421,1.59225971,157.02,156.99,10.33779855]
[1727674268234,23.776884,157.02,156.99,10.33779855]
[1727674268407,25.36927747,157.02,156.99,10.33779855]
[1727674268610,23.776884,157.02,156.99,10.33779855]
[1727674270535,25.3693021,157.02,156.99,10.33779855]
[1727674271530,1.46552079,157.01,156.99,10.33779855]
[1727674271737,28.6324,157.03,156.93,16.2841]
[1727674271738,23.776884,157.0,156.93,16.2841]
[1727674272032,23.776884,157.0,156.98,10.33779855]
[1727674274828,1.59256896,156.99,156.96,10.33779855]
[1727674275815,1.59274758,156.98,156.96,10.33779855]
[1727674276036,23.776884,156.99,156.96,10.33779855]
[1727674276211,1.59277946,156.98,156.96,10.33779855]
[1727674280219,23.776884,156.97,156.94,10.33779855]
[1727674280532,1.59295446,156.96,156.93,10.33779855]
[1727674281646,51.712984,156.97,156.86,6.80472503]
[1727674281818,51.712984,156.97,156.92,10.33779855]
[1727674285720,45.342384,156.97,156.92,10.33779855]
[1727674291135,45.342384,156.97,156.94,10.33779855]
[1727674292228,21.5655,156.97,156.94,10.33779855]
[1727674292429,15.2404,156.97,156.96,10.33779855]
[1727674297547,15.2404,156.97,156.94,10.33779855]
[1727674298947,1.59282731,156.96,156.94,10.33779855]
[1727674300250,15.2404,156.97,156.94,10.33779855]
[1727674301453,23.776884,156.95,156.91,10.33779855]
[1727674301659,1.5931168,156.94,156.91,10.33779855]
[1727674302026,23.776884,156.95,156.91,10.33779855]
[1727674304051,23.776884,156.95,156.93,10.33779855]
[1727674306359,20.0,156.94,156.87,0.7653896]
[1727674306680,23.776884,156.91,156.87,10.33779855]
[1727674306845,1.59348402,156.9,156.87,10.33779855]
[1727674310347,25.37037079,156.91,156.87,10.33779855]
[1727674315458,23.776884,156.91,156.87,10.33779855]
[1727674317452,25.37037644,156.91,156.88,5.0285942]
[1727674317661,25.37037644,156.91,156.89,5.0285942]
[1727674317850,25.37037644,156.91,156.9,5.0285942]
[1727674318764,16.4887,156.92,156.9,5.0285942]
[1727674319061,16.4887,156.92,156.91,10.33779855]
[1727674319259,20.0,156.95,156.91,10.33779855]
[1727674320192,23.776884,156.94,156.91,10.33779855]
[1727674320552,20.0,156.93,156.91,10.33779855]
[1727674322671,23.776884,156.95,156.91,10.33779855]
[1727674322970,23.776884,156.95,156.93,10.33779855]
[1727674323557,25.36995755,156.95,156.93,10.33779855]
[1727674324068,23.776884,156.95,156.93,10.33779855]
[1727674325070,25.36995958,156.95,156.93,10.33779855]
[1727674325266,25.36995958,156.95,156.91,10.33779855]
[1727674327758,31.74135958,156.95,156.91,10.33779855]
[1727674328769,30.148284,156.95,156.91,10.33779855]
[1727674331776,23.776884,156.95,156.91,10.33779855]
[1727674332146,23.776884,156.95,156.93,10.33779855]
[1727674335261,20.0,156.98,156.93,10.33779855]
[1727674335468,1.59288352,156.97,156.95,10.33779855]
[1727674336178,20.0,156.99,156.95,10.33779855]
[1727674336359,20.0,156.99,156.89,7.8590217]
[1727674336360,25.36975706,156.98,156.89,7.8590217]
[1727674336557,31.73995706,156.98,156.93,10.33779855]
[1727674337067,30.147084,156.98,156.93,10.33779855]
[1727674337450,23.776884,156.96,156.93,10.33779855]
[1727674337677,1.59299796,156.95,156.93,10.33779855]
[1727674339861,1.59299722,156.95,156.93,10.33779855]
[1727674340893,1.59300067,156.96,156.93,10.33779855]
[1727674341770,23.776884,156.95,156.93,10.33779855]
[1727674344697,1.59312489,156.94,156.93,10.33779855]
[1727674345159,23.776884,156.95,156.93,10.33779855]
[1727674345564,23.776884,156.96,156.93,10.33779855]
[1727674346377,1.59305014,156.95,156.93,10.33779855]
[1727674346876,23.776884,156.96,156.93,10.33779855]
[1727674348771,20.0,156.99,156.93,10.33779855]
[1727674348977,30.147184,156.98,156.93,10.33779855]
[1727674349774,1.59293098,156.97,156.93,10.33779855]
[1727674350678,23.776884,156.96,156.93,10.33779855]
[1727674350985,1.59300318,156.95,156.93,10.33779855]
[1727674355886,25.36988718,156.95,156.94,8.06227955]
[1727674356474,23.776884,156.95,156.94,8.06227955]
[1727674357290,23.776884,156.95,156.94,8.06158189]
[1727674360521,23.776884,156.95,156.93,10.33779855]
[1727674360795,23.776884,156.96,156.94,8.06088009]
[1727674360996,23.776884,156.96,156.95,8.06088009]
[1727674364106,6.3703,156.98,156.95,8.06180956]
[1727674364107,23.776884,156.97,156.95,8.06180956]
[1727674364275,23.776884,156.97,156.93,10.33779855]
[1727674364482,23.776884,156.97,156.94,8.06232786]
[1727674364782,23.776884,156.97,156.95,8.06232786]
[1727674364975,23.776884,156.97,156.96,8.06232786]
[1727674371127,23.776884,156.97,156.93,10.33779855]
[1727674371488,23.776884,156.97,156.94,8.06176561]
[1727674371792,25.36988045,156.96,156.95,8.06176561]
[1727674372692,23.776884,156.96,156.95,8.06176561]
[1727674377643,23.776884,156.96,156.92,10.33779855]
[1727674377915,25.36999456,156.95,156.93,8.06281501]
[1727674378213,25.36999456,156.95,156.94,8.06281501]
[1727674378717,23.776884,156.95,156.94,8.06281501]
[1727674380814,23.776884,156.95,156.92,10.33779855]
[1727674381114,1.59311238,156.94,156.93,8.06456001]
[1727674382393,23.776884,156.95,156.93,8.06456001]
[1727674382716,23.776884,156.95,156.94,8.06456001]
[1727674383211,23.776884,156.95,156.94,13.10501513]
[1727674383918,23.776884,156.95,156.94,13.10530624]
[1727674384506,21.59306666,156.99,156.94,23.44310479]
[1727674384713,21.59306666,156.99,156.94,10.33779855]
[1727674385514,27.96286666,156.99,156.94,10.33779855]
[1727674385712,23.776884,156.98,156.94,10.33779855]
[1727674386013,23.776884,156.96,156.94,10.33779855]
[1727674386914,1.59297434,156.95,156.93,7.87703902]
[1727674388002,1.59297434,156.95,156.92,18.21483757]
[1727674388811,23.776884,156.94,156.92,7.87703902]
[1727674389120,1.59322199,156.93,156.92,7.87703902]
[1727674390212,1.59322199,156.93,156.91,10.33779855]
[1727674390521,1.59322199,156.93,156.92,7.88106939]
[1727674391408,1.59322199,156.93,156.91,10.33779855]
[1727674391722,23.776884,156.94,156.91,10.33779855]
[1727674391899,23.776884,156.95,156.93,7.88373065]
[1727674392100,25.37008692,156.94,156.93,7.88373065]
[1727674392620,25.37008692,156.94,156.91,10.33779855]
[1727674393004,23.776884,156.94,156.91,10.33779855]
[1727674393194,23.776884,156.94,156.88,0.76575767]
[1727674393195,30.272674,156.98,156.93,10.33779855]
[1727674393398,23.776884,156.96,156.93,10.33779855]
[1727674393938,23.776884,156.97,156.93,18.22216625]
[1727674394224,23.776884,156.98,156.93,10.33779855]
[1727674398223,1.59297841,156.97,156.93,10.33779855]
[1727674398436,23.776884,156.96,156.94,10.33779855]
[1727674400632,26.3698,156.99,156.94,10.33779855]
[1727674400804,25.36985788,156.98,156.94,10.33779855]
[1727674401129,23.776884,156.98,156.94,10.33779855]
[1727674402217,1.59297317,156.97,156.94,10.33779855]
[1727674402428,23.776884,156.98,156.94,10.33779855]
[1727674404700,30.147184,156.98,156.94,10.33779855]
[1727674405133,23.776884,156.98,156.94,10.33779855]
[1727674407531,1.59296716,156.97,156.94,10.33779855]
[1727674410717,23.776884,156.98,156.94,10.33779855]
[1727674411823,1.59296884,156.97,156.94,10.33779855]
[1727674412255,30.147084,156.98,156.94,10.33779855]
[1727674417526,23.776884,156.98,156.94,10.33779855]
[1727674417938,20.0,156.99,156.94,10.33779855]
[1727674419214,3.34600016,157.03,156.98,10.33779855]
[1727674419426,6.4755,157.05,157.0,10.33779855]
[1727674420436,12.8429,157.05,156.96,1.2315]
[1727674420743,6.3683,157.03,157.0,10.33779855]
[1727674420912,7.83442736,157.02,156.96,1.2315]
[1727674421110,1.59242551,157.01,156.98,10.33779855]
[1727674423528,1.59249353,157.02,156.98,10.33779855]
[1727674423921,23.776884,157.02,156.98,10.33779855]
[1727674425437,30.145484,157.02,156.98,10.33779855]
[1727674427433,1.46536698,157.01,156.98,10.33779855]
[1727674429727,30.145484,157.02,156.98,10.33779855]
[1727674432643,6.3683,157.03,157.0,10.33779855]
[1727674432842,23.776884,157.03,157.0,10.33779855]
[1727674433145,25.3692326,157.03,157.0,10.33779855]
[1727674438346,26.3678,157.04,156.94,30.0]
[1727674438347,15.0429,157.08,157.02,10.33779855]
[1727674438557,6.367,157.06,157.02,10.33779855]
[1727674438847,1.59209144,157.05,157.02,10.33779855]
[1727674439419,6.367,157.06,157.02,10.33779855]
[1727674439619,1.59209147,157.05,157.02,10.33779855]
[1727674441780,6.367,157.06,157.02,10.33779855]
[1727674443244,1.46584231,157.05,157.02,10.33779855]
[1727674444554,23.776884,157.07,157.04,10.33779855]
[1727674445756,1.46599503,157.06,157.04,10.33779855]
[1727674446059,7.83299503,157.06,157.04,10.33779855]
[1727674446639,7.83299503,157.06,157.02,10.33779855]
[1727674446843,23.776884,157.05,157.02,10.33779855]
[1727674447040,1.59217623,157.04,157.02,10.33779855]
[1727674447647,30.144284,157.05,157.02,10.33779855]
[1727674447857,1.59221899,157.04,157.02,10.33779855]
[1727674448150,7.96001899,157.04,157.0,10.33779855]
[1727674449135,23.776884,157.05,157.0,10.33779855]
[1727674449334,23.776884,157.05,156.94,33.5394]
[1727674449335,1.59226512,157.04,157.02,10.33779855]
[1727674449559,30.144284,157.05,157.02,10.33779855]
[1727674450236,1.59221771,157.04,157.02,10.33779855]
[1727674450628,1.59221771,157.04,156.94,10.34412503]
[1727674450832,23.776884,157.03,156.99,10.33779855]
[1727674451055,1.59242977,157.02,156.99,10.33779855]
[1727674451639,30.145084,157.03,156.99,10.33779855]
[1727674452040,1.59244712,157.02,156.99,10.33779855]
[1727674452656,30.145084,157.03,156.99,10.33779855]
[1727674454075,1.59244879,157.02,156.94,1.2315]
[1727674454251,1.59244879,157.02,156.97,10.33779855]
[1727674454252,7.96134879,157.02,156.97,10.33779855]
[1727674454575,45.832384,157.03,156.97,10.33779855]
[1727674454947,1.4654357,157.02,156.97,10.33779855]
[1727674455149,6.3698,156.99,156.95,30.0]
[1727674455361,6.3698,156.99,156.95,10.33779855]
[1727674455362,1.59277891,156.98,156.95,10.33779855]
[1727674455759,23.776884,156.99,156.95,10.33779855]
[1727674469380,1.59279256,156.98,156.95,10.33779855]
[1727674470558,23.776884,156.99,156.95,10.33779855]
[1727674472874,6.0233,157.0,156.95,10.33779855]
[1727674478585,6.0233,157.0,156.92,0.12549]
[1727674478779,6.0233,157.0,156.95,10.33779855]
[1727674483490,6.0233,157.0,156.91,0.25098]
[1727674483796,1.59272192,156.99,156.95,10.33779855]
[1727674485183,1.59272192,156.99,156.91,0.25098]
[1727674485369,1.59272192,156.99,156.95,10.33779855]
[1727674486091,15.6872,157.03,156.96,0.25098]
[1727674486267,1.59230056,157.02,156.99,10.33779855]
[1727674493704,23.776884,157.02,156.99,10.33779855]
[1727674496697,23.776884,157.0,156.92,0.12549]
[1727674496896,1.59268076,156.99,156.96,10.33779855]
[1727674497908,1.59268076,156.99,156.9,1.2315]
[1727674498089,1.59268076,156.99,156.96,10.33779855]
[1727674499913,6.4603,157.01,156.98,10.33779855]
[1727674500780,1.5924504,157.0,156.98,10.33779855]
[1727674503114,6.4603,157.01,156.98,10.33779855]
[1727674503495,1.59247863,157.0,156.98,10.33779855]
[1727674503702,6.4603,157.01,156.98,10.33779855]
[1727674504720,6.4603,157.01,156.99,5.04475708]
[1727674504900,6.4603,157.01,157.0,5.04475708]
[1727674506231,30.237184,157.01,157.0,5.04475708]
[1727674507895,30.237184,157.01,157.0,5.04619393]
[1727674511128,30.237184,157.01,157.0,5.04611745]
[1727674514626,30.237184,157.01,157.0,5.04620961]
[1727674515412,31.82975424,157.01,157.0,5.04620961]
[1727674515619,30.237184,157.01,157.0,5.04620961]
[1727674515808,30.237184,157.01,157.0,5.04621624]
[1727674516798,30.237184,157.01,157.0,5.04638908]
[1727674517018,6.4603,157.01,157.0,5.04638908]
[1727674519718,20.0,157.02,157.0,5.04638908]
[1727674520021,20.0,157.02,157.01,5.04638908]
[1727674521732,20.0,157.02,156.99,10.33779855]
[1727674522019,20.0,157.02,157.0,5.0460862]
[1727674522223,15.6872,157.03,157.01,5.0460862]
[1727674522433,15.6872,157.03,157.02,5.0460862]
[1727674522723,15.6872,157.03,157.02,5.04493824]
[1727674523303,6.1211,157.05,157.02,5.04493824]
[1727674523510,15.2733,157.07,157.03,15.38273679]
[1727674523713,15.2733,157.07,157.04,5.04493824]
[1727674523918,15.2733,157.07,157.05,5.04493824]
[1727674524223,15.2733,157.07,157.03,10.33779855]
[1727674530324,25.368928,157.06,157.01,10.33779855]
[1727674530515,23.776884,157.04,157.01,10.33779855]
[1727674530717,1.59229915,157.03,157.01,10.33779855]
[1727674531724,1.59229915,157.03,156.99,10.33779855]
[1727674533920,15.0756,157.02,156.99,10.33779855]
[1727674534123,1.59244585,157.01,156.97,10.33779855]
[1727674535226,1.59254533,157.0,156.97,10.33779855]
[1727674535434,1.59254533,157.0,156.92,6.6513084]
[1727674535611,1.59254533,157.0,156.96,10.33779855]
[1727674536331,20.0,157.01,156.96,10.33779855]
[1727674538022,21.4442,157.02,156.96,10.33779855]
[1727674538230,20.0,157.01,156.96,10.33779855]
[1727674541539,1.59258961,157.0,156.96,10.33779855]
[1727674543733,20.0,157.01,156.96,10.33779855]
[1727674544526,1.5925905,157.0,156.96,10.33779855]
[1727674546240,20.0,157.01,156.96,10.33779855]
[1727674550445,15.0756,157.02,156.98,10.33779855]
[1727674550745,15.0756,157.02,157.0,10.33779855]
[1727674551037,6.1776,157.04,157.0,10.33779855]
[1727674556043,1.5922522,157.03,157.0,10.33779855]
[1727674557552,6.1776,157.04,157.0,10.33779855]
[1727674560859,1.59234519,157.03,157.0,10.33779855]
[1727674561152,6.1776,157.04,157.0,10.33779855]
[1727674561726,6.1776,157.04,156.94,1.01459386]
[1727674561929,31.73766193,157.03,156.93,0.25098]
[1727674562138,31.73766193,157.03,156.98,10.33779855]
[1727674564653,30.145184,157.03,156.98,10.33779855]
[1727674565159,30.145184,157.03,156.99,8.06940156]
[1727674565335,30.145184,157.03,156.98,10.33779855]
[1727674574865,23.776884,157.03,156.98,10.33779855]
[1727674575063,23.776884,157.03,157.0,10.33779855]
[1727674576960,23.776884,157.03,156.98,10.33779855]
[1727674578049,23.776884,157.03,156.99,7.89057033]
[1727674580761,7.83408237,157.02,156.99,7.89057033]
[1727674581061,30.145884,157.01,156.98,7.89057033]
[1727674581273,1.59270728,157.0,156.98,7.89057033]
[1727674582150,1.59270728,157.0,156.97,7.89057033]
[1727674582768,30.386984,156.99,156.97,7.89057033]
[1727674583060,1.59280737,156.98,156.96,7.89057033]
[1727674583267,1.59280737,156.98,156.95,7.89057033]
[1727674583572,1.59280737,156.98,156.96,7.89057033]
[1727674583879,1.59280737,156.98,156.96,7.89751457]
[1727674584167,1.59280737,156.98,156.97,5.05363626]
[1727674585869,30.386984,156.99,156.97,5.05363626]
[1727674586064,50.386984,156.99,156.98,5.05363626]
[1727674586262,51.97972637,156.99,156.98,5.05363626]
[1727674586971,51.97972637,156.99,156.95,10.33779855]
[1727674587273,51.97972637,156.99,156.96,5.05090499]
[1727674587474,51.97972637,156.99,156.97,5.05090499]
[1727674587675,58.34952637,156.99,156.98,5.05090499]
[1727674588563,58.47501637,156.99,156.98,5.05090499]
[1727674589355,58.60050637,156.99,156.98,5.05090499]
[1727674589671,57.007764,156.99,156.98,5.05090499]
[1727674590475,23.776884,156.97,156.94,7.89054169]
[1727674590662,30.147584,156.97,156.95,5.04816588]
[1727674590861,30.147584,156.97,156.94,7.89054169]
[1727674591263,30.147584,156.97,156.93,7.89054169]
[1727674593076,23.776884,156.97,156.93,7.89054169]
[1727674593266,16.5915,156.96,156.93,7.89054169]
[1727674593666,16.5915,156.96,156.91,10.33779855]
[1727674594274,16.5915,156.96,156.93,7.88518423]
[1727674594975,23.776884,156.97,156.93,18.22298278]
[1727674595180,20.0,156.98,156.95,10.33779855]
[1727674597261,1.59291898,156.97,156.93,10.33779855]
[1727674597583,1.59291898,156.97,156.93,18.21702487]
[1727674597878,20.0,156.98,156.93,18.21702487]
[1727674600490,20.0,156.98,156.93,10.33779855]
[1727674600701,20.0,156.98,156.93,18.21649482]
[1727674604062,23.776884,156.99,156.95,10.33779855]
[1727674604293,15.3076,157.0,156.97,10.33779855]
[1727674607971,1.59273442,156.99,156.95,18.21672748]
[1727674608964,23.776884,156.99,156.95,18.21672748]
[1727674610880,23.776884,156.99,156.95,18.22001995]
[1727674612267,15.3076,157.0,156.95,18.22001995]
[1727674612468,20.0,157.0,156.97,10.33779855]
[1727674612668,23.776884,157.01,156.97,10.33779855]
[1727674618084,23.776884,157.02,156.97,10.33779855]
[1727674618289,1.59268698,157.0,156.97,10.33779855]
[1727674618785,7.96208698,157.0,156.96,7.8822214]
[1727674619088,7.96208698,157.0,156.95,18.22001995]
[1727674620489,7.96208698,157.0,156.95,10.33779855]
[1727674620675,23.776884,156.99,156.95,18.22856073]
[1727674622188,1.59283186,156.98,156.95,18.22856073]
[1727674622401,1.59283186,156.98,156.95,18.23314585]
[1727674622696,1.59288552,156.97,156.95,10.33779855]
[1727674622895,20.0,157.01,156.95,18.23427936]
[1727674623068,23.776884,157.01,156.97,10.33779855]
[1727674623392,23.776884,157.01,156.97,18.23427936]
[1727674623966,26.3689,157.02,156.97,18.23427936]
[1727674624176,1.59257916,157.01,156.97,18.23427936]
[1727674624399,26.3689,157.02,156.97,18.23427936]
[1727674624698,26.3689,157.02,156.98,10.11093427]
[1727674624873,20.0,157.02,156.99,10.11093427]
[1727674625074,7.96179885,157.01,156.97,7.89648081]
[1727674625276,7.96179885,157.01,156.98,18.20052576]
[1727674625500,7.96179885,157.01,156.99,8.08912256]
[1727674625798,51.73868285,157.01,157.0,8.08912256]
[1727674625993,50.146084,157.01,157.0,8.08912256]
[1727674629191,50.146084,157.01,156.96,10.33779855]
[1727674629378,50.146084,157.01,157.0,8.09177037]
[1727674629686,30.146284,157.0,156.96,10.33779855]
[1727674630289,23.776884,157.0,156.96,10.33779855]
[1727674630489,26.3699,156.99,156.94,10.33779855]
[1727674630688,6.3699,156.99,156.94,10.33779855]
[1727674630874,20.0,156.99,156.94,10.33779855]
[1727674632380,20.0,156.99,156.96,10.33779855]
[1727674632581,6.5892,157.03,156.96,10.33779855]
[1727674632582,6.3689,157.02,156.96,10.33779855]
[1727674632793,43.776884,157.01,156.96,10.33779855]
[1727674633978,50.145984,157.01,156.96,10.33779855]
[1727674636497,6.5892,157.03,156.98,10.33779855]
[1727674636703,23.776884,157.02,156.98,10.33779855]
[1727674637081,23.776884,157.02,156.92,0.12549]
[1727674637282,6.369,157.01,156.92,0.12549]
[1727674637484,1.59259523,157.0,156.92,0.12549]
[1727674637687,23.776884,156.99,156.95,10.33779855]
[1727674638383,1.59284798,156.98,156.95,10.33779855]
[1727674638593,21.59284798,156.98,156.89,1.2315]
[1727674638873,6.3706,156.97,156.93,10.33779855]
[1727674639075,7.96427928,156.96,156.91,10.33779855]
[1727674639500,23.776884,156.95,156.86,2.3079]
[1727674639797,1.59334572,156.94,156.9,10.33779855]
[1727674640004,23.776884,156.95,156.9,10.33779855]
[1727674640677,21.59332954,156.94,156.9,10.33779855]
[1727674640873,25.37024242,156.93,156.85,1.2315]
[1727674641078,25.37024242,156.93,156.88,10.33779855]
[1727674642485,23.776884,156.93,156.88,10.33779855]
[1727674642990,7.96626385,156.92,156.83,0.25098]
[1727674643300,7.96626385,156.92,156.87,10.33779855]
[1727674644075,23.776884,156.91,156.81,7.89020628]
[1727674644276,7.96753898,156.9,156.86,10.33779855]
[1727674644495,1.59373898,156.9,156.86,10.33779855]
[1727674646395,1.59373898,156.9,156.85,10.33779855]
[1727674646396,23.776884,156.89,156.85,10.33779855]
[1727674646600,1.59388915,156.88,156.81,1.2315]
[1727674646801,30.150784,156.89,156.78,2.3079]
[1727674646802,30.150784,156.89,156.84,10.33779855]
[1727674647001,18.03612171,156.88,156.78,2.3079]
[1727674647186,25.24080675,156.87,156.78,2.3079]
[1727674647388,23.776884,156.87,156.82,10.33779855]
[1727674647892,1.59415617,156.86,156.82,10.33779855]
[1727674648082,36.625384,156.87,156.82,10.33779855]
[1727674648703,30.250684,156.87,156.82,10.33779855]
[1727674651702,30.250684,156.87,156.79,4.87812957]
[1727674651930,23.776884,156.85,156.8,4.87812957]